bitfinex/quotes_BTCUSD_20250616
["timestamp","ask_amount","ask_price","bid_price","bid_amount"]
[1750035725151,5.11958377,105620.0,105610.0,0.0011421]
[1750035726296,5.11011632,105620.0,105610.0,0.0011421]
[1750035726409,4.50222468,105620.0,105610.0,0.0338421]
[1750035726643,4.50222468,105620.0,105610.0,0.07239631]
[1750035726855,4.51676553,105620.0,105610.0,0.0659421]
[1750035727071,4.91196914,105620.0,105610.0,0.0659421]
[1750035727550,4.92143632,105620.0,105610.0,0.0338421]
[1750035728251,4.93090359,105620.0,105610.0,0.0338421]
[1750035728477,4.94037104,105620.0,105610.0,0.0338421]
[1750035728703,4.93090359,105620.0,105610.0,0.0338421]
[1750035728976,5.02705281,105620.0,105610.0,0.0011421]
[1750035729211,5.23262807,105620.0,105610.0,0.0011421]
[1750035729436,5.14594675,105620.0,105610.0,0.0011421]
[1750035730324,5.13647957,105620.0,105610.0,0.0011421]
[1750035730537,5.32583764,105620.0,105610.0,0.0011421]
[1750035730752,5.35803764,105620.0,105610.0,0.0011421]
[1750035732428,5.34857037,105620.0,105610.0,0.0011421]
[1750035732924,5.44471959,105620.0,105610.0,0.0011421]
[1750035734053,5.43525205,105620.0,105610.0,0.0011421]
[1750035734699,5.42578433,105620.0,105610.0,0.0011421]
[1750035737344,5.43525196,105620.0,105610.0,0.0011421]
[1750035737610,5.30690274,105620.0,105610.0,0.0011421]
[1750035737827,5.15086274,105620.0,105610.0,0.0011421]
[1750035738064,4.53569998,105620.0,105610.0,0.0635421]
[1750035738270,4.93090359,105620.0,105610.0,0.0635421]
[1750035738490,4.93090341,105620.0,105610.0,0.0635421]
[1750035738716,5.12972893,105620.0,105610.0,0.0635421]
[1750035738974,5.03652008,105620.0,105610.0,0.0329421]
[1750035739194,4.93090341,105620.0,105610.0,0.0329421]
[1750035739411,5.08690341,105620.0,105610.0,0.0329421]
[1750035740582,5.06796914,105620.0,105610.0,0.0329421]
[1750035740840,5.06796914,105620.0,105610.0,0.0633421]
[1750035741517,4.91196914,105620.0,105610.0,0.0633421]
[1750035741979,4.92143623,105620.0,105610.0,0.0633421]
[1750035742824,4.91196914,105620.0,105610.0,0.0633421]
[1750035743883,4.91196914,105620.0,105610.0,0.06967631]
[1750035744136,4.51676553,105620.0,105610.0,0.0633421]
[1750035744401,4.48828553,105620.0,105610.0,0.08608534]
[1750035745428,4.88348914,105620.0,105610.0,0.08608534]
[1750035747386,4.88348914,105620.0,105610.0,0.0633421]
[1750035751721,4.89295641,105620.0,105610.0,0.0329421]
[1750035752111,4.98910563,105620.0,105610.0,0.0329421]
[1750035752357,5.42588659,105620.0,105610.0,0.0011421]
[1750035752595,5.26500543,105620.0,105610.0,0.0011421]
[1750035753699,5.25553762,105620.0,105610.0,0.0011421]
[1750035753925,5.26500543,105620.0,105610.0,0.0011421]
[1750035754122,4.76418479,105620.0,105610.0,0.0011421]
[1750035754372,5.1593884,105620.0,105610.0,0.0011421]
[1750035754574,5.16885612,105620.0,105610.0,0.0011421]
[1750035755422,5.17832402,105620.0,105610.0,0.0011421]
[1750035755874,4.96360059,105620.0,105610.0,0.0011421]
[1750035756081,5.0867005,105620.0,105610.0,0.0011421]
[1750035756301,5.09468804,105620.0,105610.0,0.0011421]
[1750035756714,5.0852205,105620.0,105610.0,0.0011421]
[1750035756973,5.09468795,105620.0,105610.0,0.0011421]
[1750035757656,4.9294205,105620.0,105610.0,0.0011421]
[1750035757858,4.51528253,105620.0,105610.0,0.0643421]
[1750035758087,4.37602292,105620.0,105610.0,0.07077631]
[1750035759139,4.37602292,105620.0,105610.0,0.09352647]
[1750035759345,4.37602292,105620.0,105610.0,0.08709226]
[1750035759558,4.77122653,105620.0,105610.0,0.08709226]
[1750035759755,4.77122653,105620.0,105610.0,0.0643421]
[1750035764903,4.77122653,105620.0,105610.0,0.08709397]
[1750035766099,4.77122653,105620.0,105610.0,0.0326421]
[1750035766474,4.77122653,105620.0,105610.0,0.05539603]
[1750035767136,4.77122653,105620.0,105610.0,0.08659603]
[1750035770078,4.77122653,105620.0,105610.0,0.0326421]
[1750035771893,4.77122653,105620.0,105610.0,0.05539729]
[1750035772495,4.77122653,105620.0,105610.0,0.08779729]
[1750035774969,4.77122653,105620.0,105610.0,0.05539729]
[1750035775170,4.77122653,105620.0,105610.0,0.0326421]
[1750035776569,4.77122653,105620.0,105610.0,0.05539791]
[1750035777643,4.77122653,105620.0,105610.0,0.0326421]
[1750035777843,4.77122653,105620.0,105610.0,0.05539825]
[1750035778489,4.77122653,105620.0,105610.0,0.0326421]
[1750035779560,4.55608461,105620.0,105610.0,0.05539866]
[1750035781647,4.71770185,105620.0,105610.0,0.0011421]
[1750035781893,4.8638744,105620.0,105610.0,0.0011421]
[1750035782136,4.82250722,105620.0,105610.0,0.0238991]
[1750035782471,4.67633431,105620.0,105610.0,0.02389884]
[1750035783077,4.72656903,105620.0,105610.0,0.02389884]
[1750035783482,4.72656903,105620.0,105610.0,0.0011421]
[1750035783711,4.82271825,105620.0,105610.0,0.0011421]
[1750035783919,5.20854458,105620.0,105610.0,0.0011421]
[1750035784285,5.02865441,105620.0,105610.0,0.0011421]
[1750035785053,4.92303729,105620.0,105610.0,0.0011421]
[1750035787449,4.93250519,105620.0,105610.0,0.0011421]
[1750035787702,4.9230372,105620.0,105610.0,0.0011421]
[1750035787849,4.69816722,105620.0,105610.0,0.0011421]
[1750035788057,4.87286185,105620.0,105610.0,0.0011421]
[1750035791035,4.69816722,105620.0,105610.0,0.0011421]
[1750035791259,4.86331449,105620.0,105610.0,0.0011421]
[1750035792306,4.87278194,105620.0,105610.0,0.0011421]
[1750035792713,4.86331449,105620.0,105610.0,0.0011421]
[1750035792917,4.87278185,105620.0,105610.0,0.0011421]
[1750035793129,4.86331449,105620.0,105610.0,0.0011421]
[1750035793762,4.70763449,105620.0,105610.0,0.0011421]
[1750035793966,4.85384722,105620.0,105610.0,0.0011421]
[1750035794175,4.86331431,105620.0,105610.0,0.0011421]
[1750035794803,4.87278149,105620.0,105610.0,0.0011421]
[1750035795017,4.86331431,105620.0,105610.0,0.0011421]
[1750035795748,4.87278158,105620.0,105610.0,0.0011421]
[1750035796169,4.86331431,105620.0,105610.0,0.0011421]
[1750035796414,4.84148149,105620.0,105610.0,0.0011421]
[1750035797639,4.87288149,105620.0,105610.0,0.0011421]
[1750035797871,4.88234876,105620.0,105610.0,0.0011421]
[1750035798544,4.87288149,105620.0,105610.0,0.0011421]
[1750035800090,4.8918163,105620.0,105610.0,0.0011421]
[1750035800307,4.93338393,105620.0,105610.0,0.0011421]
[1750035800713,4.9239163,105620.0,105610.0,0.0011421]
[1750035800928,4.93338402,105620.0,105610.0,0.0011421]
[1750035801135,5.02006552,105620.0,105610.0,0.0011421]
[1750035801356,5.02953324,105620.0,105610.0,0.0011421]
[1750035801760,5.02006552,105620.0,105610.0,0.0011421]
[1750035801965,5.02953324,105620.0,105610.0,0.0011421]
[1750035802863,5.02953315,105620.0,105610.0,0.0011421]
[1750035803083,4.93338393,105620.0,105610.0,0.0011421]
[1750035803308,5.11327545,105620.0,105610.0,0.0011421]
[1750035803532,4.72707361,105620.0,105610.0,0.0011421]
[1750035803748,5.12281864,105620.0,105610.0,0.0011421]
[1750035804480,5.11335101,105620.0,105610.0,0.0011421]
[1750035804934,5.20950023,105620.0,105610.0,0.0011421]
[1750035809586,5.20003251,105620.0,105610.0,0.0011421]
[1750035811621,0.34946888,105600.0,105590.0,0.033]
[1750035811829,4.73781161,105600.0,105590.0,0.03314227]
[1750035812056,4.83405346,105600.0,105590.0,0.03314227]
[1750035812286,4.96311371,105600.0,105590.0,0.00014227]
[1750035812506,5.54960443,105600.0,105590.0,0.00014227]
[1750035812723,5.59000443,105600.0,105590.0,0.00014227]
[1750035812990,5.64765154,105600.0,105590.0,0.00014227]
[1750035814271,5.63311069,105600.0,105590.0,0.00014227]
[1750035814531,5.64765154,105600.0,105590.0,0.00014227]
[1750035814788,5.64865154,105600.0,105590.0,0.00414227]
[1750035815039,5.64765154,105600.0,105590.0,0.00014227]
[1750035815285,5.65265154,105600.0,105590.0,0.00114227]
[1750035816868,5.6498287,105600.0,105590.0,0.00114227]
[1750035817132,5.6498287,105600.0,105590.0,1e-08]
[1750035817391,5.67776528,105600.0,105590.0,1e-08]
[1750035818045,5.66322443,105600.0,105590.0,1e-08]
[1750035818234,5.67776528,105600.0,105590.0,1e-08]
[1750035819283,5.67840528,105600.0,105590.0,1e-08]
[1750035821477,4.21130619,105580.0,105570.0,0.0323]
[1750035821696,4.79890078,105580.0,105570.0,0.05009389]
[1750035821938,4.68380885,105580.0,105570.0,0.05009389]
[1750035822150,4.8706179,105580.0,105570.0,0.05009364]
[1750035822362,4.69327953,105580.0,105570.0,0.0323]
[1750035822584,4.89911066,105580.0,105570.0,0.0323]
[1750035822820,4.89911066,105580.0,105570.0,0.0333]
[1750035823036,4.9095817,105580.0,105570.0,0.0333]
[1750035823685,4.92061741,105580.0,105570.0,0.0333]
[1750035824612,4.92061741,105580.0,105570.0,0.0647]
[1750035825937,4.26715847,105580.0,105570.0,0.0647]
[1750035826351,0.01203571,105580.0,105570.0,0.50594118]
[1750035826751,0.01203571,105580.0,105570.0,0.0647]
[1750035828769,0.63717626,105600.0,105580.0,0.0332]
[1750035828972,3.818881,105590.0,105580.0,0.0332]
[1750035829377,3.82993045,105590.0,105580.0,0.0655]
[1750035830673,3.82993045,105590.0,105580.0,0.0665]
[1750035830903,3.82993045,105590.0,105580.0,0.0655]
[1750035831116,4.16993045,105590.0,105580.0,0.0655]
[1750035831755,4.57660384,105590.0,105580.0,0.0665]
[1750035831974,4.68222302,105590.0,105580.0,0.0665]
[1750035832213,4.67275306,105590.0,105580.0,0.0665]
[1750035832422,4.70632646,105590.0,105580.0,0.0333]
[1750035832635,4.71579741,105590.0,105580.0,0.001]
[1750035832847,4.96981,105590.0,105580.0,0.001]
[1750035833326,4.96033986,105590.0,105580.0,0.001]
[1750035833592,5.02428908,105590.0,105580.0,0.001]
[1750035834548,5.04701876,105590.0,105580.0,0.001]
[1750035834817,5.03754835,105590.0,105580.0,0.001]
[1750035836857,5.06603535,105590.0,105580.0,0.001]
[1750035837914,5.03383535,105590.0,105580.0,0.001]
[1750035839423,5.22141535,105590.0,105580.0,0.001]
[1750035844885,4.93768613,105590.0,105580.0,0.001]
[1750035845080,5.13456613,105590.0,105580.0,0.001]
[1750035849560,5.10216613,105590.0,105580.0,0.033]
[1750035849809,4.30612899,105590.0,105580.0,0.0648]
[1750035850052,4.7013326,105590.0,105580.0,0.0648]
[1750035850269,4.88130332,105590.0,105580.0,0.0648]
[1750035850487,4.89077337,105590.0,105580.0,0.0648]
[1750035850703,4.88130332,105590.0,105580.0,0.0648]
[1750035850920,4.89077337,105590.0,105580.0,0.0648]
[1750035851152,4.88142332,105590.0,105580.0,0.0648]
[1750035851379,4.89089337,105590.0,105580.0,0.0648]
[1750035851598,4.73481328,105590.0,105580.0,0.0648]
[1750035852049,4.31120006,105590.0,105580.0,0.0648]
[1750035852280,4.29665921,105590.0,105580.0,0.0648]
[1750035853546,4.26817221,105590.0,105580.0,0.0648]
[1750035857413,4.17193045,105590.0,105580.0,0.0648]
[1750035860046,3.83193045,105590.0,105580.0,0.0648]
[1750035869674,0.01304945,105590.0,105580.0,0.48270884]
[1750035870319,0.01304945,105590.0,105580.0,0.08750523]
[1750035870568,0.01104945,105590.0,105580.0,0.08650523]
[1750035870982,0.001,105590.0,105580.0,0.08850523]
[1750035871401,0.001,105590.0,105580.0,0.09087286]
[1750035872023,0.001,105590.0,105580.0,0.48607647]
[1750035872201,0.001,105590.0,105580.0,0.48370884]
[1750035872405,0.001,105590.0,105580.0,0.08850523]
[1750035873030,0.02122259,105590.0,105580.0,0.08850523]
[1750035873230,0.02122259,105590.0,105580.0,0.54310523]
[1750035873444,0.001,105590.0,105580.0,0.54310523]
[1750035875821,0.001,105590.0,105580.0,0.63925445]
[1750035876474,0.001,105590.0,105580.0,0.87865806]
[1750035876685,0.02084702,105590.0,105580.0,0.87865806]
[1750035876900,0.02084702,105590.0,105580.0,0.38730523]
[1750035877105,0.001,105590.0,105580.0,0.54314523]
[1750035878434,0.001,105590.0,105580.0,0.93834884]
[1750035879302,0.001,105590.0,105580.0,0.54314523]
[1750035881162,0.02169313,105590.0,105580.0,0.54314523]
[1750035881499,0.001,105590.0,105580.0,0.93834884]
[1750035883729,0.001,105590.0,105580.0,0.9783383]
[1750035885536,0.001,105590.0,105580.0,0.91874006]
[1750035885777,0.001,105590.0,105580.0,1.11233549]
[1750035886020,0.001,105590.0,105580.0,1.08393875]
[1750035886253,0.0208111,105600.0,105590.0,0.0625]
[1750035886493,0.0208111,105600.0,105590.0,0.50880501]
[1750035886725,0.76368061,105620.0,105590.0,0.50880501]
[1750035886726,3.818881,105610.0,105600.0,0.0618]
[1750035886950,3.818881,105610.0,105600.0,0.53914523]
[1750035887677,0.07558936,105630.0,105600.0,0.80690501]
[1750035887907,3.818881,105620.0,105610.0,0.0618]
[1750035888153,3.818881,105620.0,105610.0,0.24050523]
[1750035888605,3.818881,105620.0,105610.0,0.24046523]
[1750035889345,3.818881,105620.0,105610.0,0.23646523]
[1750035889549,3.818881,105620.0,105610.0,0.23642523]
[1750035889815,0.02015204,105620.0,105610.0,0.23642523]
[1750035889996,0.02215204,105620.0,105610.0,0.23742523]
[1750035890250,0.002,105620.0,105610.0,0.23742523]
[1750035890658,0.002,105620.0,105610.0,0.53622523]
[1750035892106,0.002,105620.0,105610.0,0.93142884]
[1750035892305,0.002,105620.0,105610.0,1.0276706]
[1750035892515,0.002,105620.0,105610.0,1.05606677]
[1750035893286,0.002,105620.0,105610.0,1.0276706]
[1750035893528,0.002,105620.0,105610.0,1.15221599]
[1750035893731,0.002,105620.0,105610.0,0.99629599]
[1750035893937,0.002,105620.0,105610.0,1.18997142]
[1750035894122,0.002,105620.0,105610.0,1.00569525]
[1750035894325,0.002,105620.0,105610.0,1.23062761]
[1750035894861,0.01888961,105660.0,105620.0,0.21776033]
[1750035895033,0.01,105660.0,105650.0,0.45900361]
[1750035895229,0.01,105660.0,105650.0,0.7339106]
[1750035895649,0.01,105660.0,105650.0,0.33874699]
[1750035895938,0.01,105660.0,105650.0,0.18274699]
[1750035896107,0.01,105660.0,105650.0,0.24282523]
[1750035896340,0.01,105660.0,105650.0,0.22116708]
[1750035896513,0.01,105660.0,105650.0,0.22016708]
[1750035896746,0.01,105660.0,105650.0,0.22028708]
[1750035896948,0.011,105660.0,105650.0,0.03934708]
[1750035897075,0.01,105660.0,105650.0,0.15644708]
[1750035897275,0.01,105660.0,105650.0,4.708e-05]
[1750035898005,0.01,105660.0,105650.0,0.15648708]
[1750035898006,3.860781,105660.0,105650.0,0.15648708]
[1750035898220,3.86966972,105660.0,105650.0,0.15648708]
[1750035898431,3.86966978,105660.0,105650.0,0.15648708]
[1750035898649,3.861781,105660.0,105650.0,0.00604708]
[1750035898867,3.86966979,105660.0,105650.0,0.15648708]
[1750035899080,3.8696698,105660.0,105650.0,0.15648708]
[1750035899292,3.861781,105660.0,105650.0,0.00404708]
[1750035899504,3.87066988,105660.0,105650.0,0.00404708]
[1750035899719,3.87066989,105660.0,105650.0,0.00404708]
[1750035900375,3.861781,105660.0,105650.0,0.00404708]
[1750035900601,3.90256989,105660.0,105650.0,0.00404708]
[1750035900817,3.893681,105660.0,105650.0,0.00404708]
[1750035901100,4.30723759,105660.0,105650.0,0.00404708]
[1750035901322,4.96680935,105660.0,105650.0,0.00404708]
[1750035901532,4.78641291,105660.0,105650.0,0.00404708]
[1750035901970,4.77752296,105660.0,105650.0,4.708e-05]
[1750035902191,4.90113818,105660.0,105650.0,4.708e-05]
[1750035902400,4.90213818,105660.0,105650.0,4.708e-05]
[1750035902616,4.9021381,105660.0,105650.0,4.708e-05]
[1750035902826,4.80598879,105660.0,105650.0,4.708e-05]
[1750035903467,4.81545301,105660.0,105650.0,4.708e-05]
[1750035903682,4.99527615,105660.0,105650.0,4.708e-05]
[1750035904357,4.98581219,105660.0,105650.0,4.708e-05]
[1750035904578,5.00441851,105660.0,105650.0,4.708e-05]
[1750035904828,5.07249736,105660.0,105650.0,4.708e-05]
[1750035905470,4.77759691,105660.0,105650.0,4.708e-05]
[1750035905705,4.95280509,105660.0,105650.0,4.708e-05]
[1750035906565,5.14209148,105660.0,105650.0,4.708e-05]
[1750035907862,5.13262779,105660.0,105650.0,4.708e-05]
[1750035908067,5.11369961,105660.0,105650.0,4.708e-05]
[1750035908294,5.20984883,105660.0,105650.0,4.708e-05]
[1750035908765,4.81464522,105660.0,105650.0,4.708e-05]
[1750035908978,5.20984883,105660.0,105650.0,4.708e-05]
[1750035909188,4.58909779,105660.0,105650.0,4.708e-05]
[1750035909397,5.19251579,105660.0,105650.0,4.708e-05]
[1750035909821,5.1830521,105660.0,105650.0,4.708e-05]
[1750035910477,5.1421321,105660.0,105650.0,4.708e-05]
[1750035910687,5.1420921,105660.0,105650.0,4.708e-05]
[1750035910902,4.9858121,105660.0,105650.0,4.708e-05]
[1750035911109,5.1420921,105660.0,105650.0,4.708e-05]
[1750035911547,4.9858121,105660.0,105650.0,4.708e-05]
[1750035911759,5.1420921,105660.0,105650.0,4.708e-05]
[1750035911936,5.1420521,105660.0,105650.0,4.708e-05]
[1750035912355,5.23820132,105660.0,105650.0,4.708e-05]
[1750035912792,5.22873736,105660.0,105650.0,4.708e-05]
[1750035914804,5.03945097,105660.0,105650.0,4.708e-05]
[1750035915051,4.37292961,105660.0,105650.0,4.708e-05]
[1750035915281,4.29458876,105660.0,105650.0,4.708e-05]
[1750035915509,4.32778876,105660.0,105650.0,4.708e-05]
[1750035916154,4.72299237,105660.0,105650.0,4.708e-05]
[1750035917235,4.73188222,105660.0,105650.0,4.708e-05]
[1750035917862,4.81914159,105660.0,105650.0,4.708e-05]
[1750035918093,4.82803145,105660.0,105650.0,4.708e-05]
[1750035918949,4.82803144,105660.0,105650.0,4.708e-05]
[1750035919162,4.43282784,105660.0,105650.0,4.708e-05]
[1750035919375,4.42393798,105660.0,105650.0,4.708e-05]
[1750035919594,4.29458876,105660.0,105650.0,4.708e-05]
[1750035919822,4.30347859,105660.0,105650.0,0.03174708]
[1750035920050,4.29458876,105660.0,105650.0,0.03174708]
[1750035920528,4.30347856,105660.0,105650.0,0.03174708]
[1750035920745,4.30347858,105660.0,105650.0,0.03174708]
[1750035921175,4.30347855,105660.0,105650.0,0.06354708]
[1750035921387,4.30347851,105660.0,105650.0,0.06354708]
[1750035921604,4.30347844,105660.0,105650.0,0.06354708]
[1750035922030,4.30347843,105660.0,105650.0,0.06354708]
[1750035922243,4.29458876,105660.0,105650.0,0.06354708]
[1750035922460,4.198347,105660.0,105650.0,0.06354708]
[1750035922689,4.20723659,105660.0,105650.0,0.06354708]
[1750035922906,4.198347,105660.0,105650.0,0.03174708]
[1750035923113,4.20723657,105660.0,105650.0,4.708e-05]
[1750035923328,4.62645061,105660.0,105650.0,4.708e-05]
[1750035923536,4.59355061,105660.0,105650.0,4.708e-05]
[1750035923958,4.60244033,105660.0,105650.0,4.708e-05]
[1750035924166,4.60244034,105660.0,105650.0,4.708e-05]
[1750035924379,4.198347,105660.0,105650.0,4.708e-05]
[1750035925020,4.20723671,105660.0,105650.0,4.708e-05]
[1750035925238,4.60244032,105660.0,105650.0,4.708e-05]
[1750035925457,4.60301412,105660.0,105650.0,4.708e-05]
[1750035925672,4.60244033,105660.0,105650.0,4.708e-05]
[1750035925885,4.60301412,105660.0,105650.0,4.708e-05]
[1750035926107,4.60244034,105660.0,105650.0,4.708e-05]
[1750035926563,4.59355061,105660.0,105650.0,4.708e-05]
[1750035927538,4.60244032,105660.0,105650.0,4.708e-05]
[1750035927991,4.60244033,105660.0,105650.0,4.708e-05]
[1750035928475,4.59355061,105660.0,105650.0,4.708e-05]
[1750035928714,4.59355061,105660.0,105650.0,0.06384708]
[1750035928715,4.198347,105660.0,105650.0,0.06384708]
[1750035928959,4.20723641,105660.0,105650.0,0.06384708]
[1750035929192,4.20723641,105660.0,105650.0,0.0865497]
[1750035929422,4.20723627,105660.0,105650.0,0.0865497]
[1750035929646,4.198347,105660.0,105650.0,0.0865497]
[1750035929855,4.20723627,105660.0,105650.0,0.0865497]
[1750035930070,4.198347,105660.0,105650.0,0.0865497]
[1750035930287,4.20723627,105660.0,105650.0,0.0865497]
[1750035930468,3.83877027,105660.0,105650.0,0.16460503]
[1750035930713,4.17877022,105660.0,105650.0,0.16460503]
[1750035930933,4.17877006,105660.0,105650.0,0.55980864]
[1750035931137,0.35888906,105660.0,105650.0,0.55980864]
[1750035931642,0.351,105660.0,105650.0,0.0895497]
[1750035931856,0.3598887,105660.0,105650.0,0.0588497]
[1750035932083,0.351,105660.0,105650.0,0.0916497]
[1750035932502,0.35988875,105660.0,105650.0,0.0916497]
[1750035932952,0.351,105660.0,105650.0,0.0916497]
[1750035933161,0.35988875,105660.0,105650.0,0.0916497]
[1750035933373,0.351,105660.0,105650.0,0.0916497]
[1750035933599,0.35988888,105660.0,105650.0,0.0588497]
[1750035933828,4.72726406,105660.0,105650.0,0.0257497]
[1750035934043,4.83239562,105660.0,105650.0,0.00304708]
[1750035934274,4.8513238,105660.0,105650.0,0.00304708]
[1750035934495,4.842434,105660.0,105650.0,0.00304708]
[1750035934928,4.84185973,105660.0,105650.0,0.00304708]
[1750035935346,4.74215384,105660.0,105650.0,0.00304708]
[1750035935602,4.74215375,105660.0,105650.0,0.00304708]
[1750035935816,4.76050761,105660.0,105650.0,0.00304708]
[1750035936027,4.76997166,105660.0,105650.0,0.00304708]
[1750035936266,4.76108167,105660.0,105650.0,0.00304708]
[1750035936477,4.92658589,105660.0,105650.0,0.00304708]
[1750035936908,5.20763541,105660.0,105650.0,0.00304708]
[1750035937768,5.20663541,105660.0,105650.0,4.708e-05]
[1750035938198,5.01734902,105660.0,105650.0,0.00104708]
[1750035938625,5.20663541,105660.0,105650.0,0.00104708]
[1750035939059,5.24743541,105660.0,105650.0,0.00104708]
[1750035939277,5.23797136,105660.0,105650.0,0.00104708]
[1750035940566,5.23797136,105660.0,105650.0,4.708e-05]
[1750035941035,5.23897136,105660.0,105650.0,0.00104708]
[1750035943280,5.25379433,105660.0,105650.0,0.00104708]
[1750035944259,5.28226233,105660.0,105650.0,0.00104708]
[1750035945957,4.93226233,105660.0,105650.0,0.00104708]
[1750035947897,5.27226233,105660.0,105650.0,0.00104708]
[1750035948877,5.25743936,105660.0,105650.0,0.00104708]
[1750035953415,5.27226239,105660.0,105650.0,0.00104708]
[1750035956617,4.37660074,105640.0,105630.0,0.0317]
[1750035956868,4.36715398,105630.0,105620.0,0.0317]
[1750035957107,4.1967508,105620.0,105610.0,0.0317]
[1750035957346,4.69766407,105620.0,105610.0,0.0317]
[1750035957583,0.01893634,105610.0,105600.0,0.0642]
[1750035957816,0.01893634,105610.0,105600.0,0.0317]
[1750035957817,4.67873106,105610.0,105600.0,0.0317]
[1750035958530,4.70734973,105610.0,105600.0,0.0317]
[1750035958783,4.28374143,105610.0,105600.0,0.0642]
[1750035959239,4.28474143,105610.0,105600.0,0.0682]
[1750035959480,4.31359039,105610.0,105600.0,0.0682]
[1750035959758,0.00114167,105610.0,105600.0,0.08257894]
[1750035960010,0.00114167,105610.0,105600.0,0.47778255]
[1750035960252,0.00114167,105610.0,105600.0,0.08257894]
[1750035960465,0.00114167,105610.0,105600.0,0.0682]
[1750035960928,3.82002267,105610.0,105600.0,0.0682]
[1750035967837,3.82002267,105610.0,105600.0,0.0357]
[1750035967838,4.22469436,105610.0,105600.0,0.0357]
[1750035968060,4.70340447,105610.0,105600.0,0.004]
[1750035968290,4.68446804,105610.0,105600.0,0.004]
[1750035968522,4.69393612,105610.0,105600.0,0.004]
[1750035968997,4.70340429,105610.0,105600.0,0.004]
[1750035969958,4.68446804,105610.0,105600.0,0.004]
[1750035970184,4.65146804,105610.0,105600.0,0.0347]
[1750035970398,4.25626443,105610.0,105600.0,0.0347]
[1750035972041,4.26573251,105610.0,105600.0,0.0347]
[1750035972271,4.25626443,105610.0,105600.0,0.0347]
[1750035972506,4.26573242,105610.0,105600.0,0.0347]
[1750035972729,4.25626443,105610.0,105600.0,0.0347]
[1750035972941,4.26573251,105610.0,105600.0,0.0347]
[1750035973149,4.27520077,105610.0,105600.0,0.0347]
[1750035973364,4.67040438,105610.0,105600.0,0.0347]
[1750035974223,5.01453537,105610.0,105600.0,0.004]
[1750035974439,4.8156912,105610.0,105600.0,0.004]
[1750035974869,4.87656157,105610.0,105600.0,0.004]
[1750035975318,5.21734172,105610.0,105600.0,0.004]
[1750035975531,5.17980282,105610.0,105600.0,0.004]
[1750035977264,5.6030768,105610.0,105600.0,0.004]
[1750035977456,0.06858074,105590.0,105570.0,0.0326]
[1750035977772,4.158881,105580.0,105570.0,0.0326]
[1750035978197,4.158881,105580.0,105570.0,0.07194]
[1750035978410,4.158881,105580.0,105570.0,0.0654]
[1750035980541,4.19069846,105580.0,105570.0,0.0694]
[1750035980734,4.19069846,105580.0,105570.0,0.0654]
[1750035981036,4.19169846,105580.0,105570.0,0.0714]
[1750035981409,4.19169846,105580.0,105570.0,0.08919178]
[1750035981588,4.19169846,105580.0,105570.0,0.08949186]
[1750035981797,4.66942426,105580.0,105570.0,0.02379221]
[1750035981983,4.65995331,105580.0,105570.0,0.02379221]
[1750035982183,4.66942426,105580.0,105570.0,0.0237925]
[1750035982384,4.65995331,105580.0,105570.0,0.006]
[1750035982696,4.65995331,105580.0,105570.0,0.02379244]
[1750035982697,4.66942426,105580.0,105570.0,0.02379244]
[1750035982899,4.66942426,105580.0,105570.0,0.006]
[1750035982900,4.65995322,105580.0,105570.0,0.006]
[1750035983104,4.58690207,105580.0,105570.0,0.05619244]
[1750035983299,4.58690207,105580.0,105570.0,0.0384]
[1750035983752,4.58690207,105580.0,105570.0,0.48269587]
[1750035983753,4.19169846,105580.0,105570.0,0.48269587]
[1750035984009,0.37281746,105580.0,105570.0,0.46490361]
[1750035984224,0.001,105580.0,105570.0,0.67796597]
[1750035984446,0.001,105580.0,105570.0,0.67796581]
[1750035984662,0.001,105580.0,105570.0,0.66017906]
[1750035984877,0.001,105580.0,105570.0,0.18860509]
[1750035985087,0.001,105580.0,105570.0,0.20639365]
[1750035985352,0.001,105580.0,105570.0,0.20639374]
[1750035985566,4.158881,105590.0,105580.0,0.0304]
[1750035985786,4.158881,105590.0,105580.0,0.04818879]
[1750035985996,4.158881,105590.0,105580.0,0.04818878]
[1750035986212,4.158881,105590.0,105580.0,0.0304]
[1750035986425,4.158881,105590.0,105580.0,0.04818878]
[1750035986662,4.158881,105590.0,105580.0,0.04818894]
[1750035987071,4.158881,105590.0,105580.0,0.0304]
[1750035987308,4.159881,105590.0,105580.0,0.05018902]
[1750035987510,4.19109209,105590.0,105580.0,0.05018901]
[1750035987717,4.19109209,105590.0,105580.0,0.05018902]
[1750035987927,4.19109209,105590.0,105580.0,0.0324]
[1750035988205,4.19109209,105590.0,105580.0,0.05018904]
[1750035988438,4.19109209,105590.0,105580.0,0.0324]
[1750035988673,4.19109209,105590.0,105580.0,0.05018906]
[1750035988906,4.19109209,105590.0,105580.0,0.0324]
[1750035989110,4.19109209,105590.0,105580.0,0.05018898]
[1750035989319,4.19109209,105590.0,105580.0,0.05018901]
[1750035989785,4.19109209,105590.0,105580.0,0.0324]
[1750035990045,4.19109209,105590.0,105580.0,0.05018867]
[1750035990254,4.19109209,105590.0,105580.0,0.10105]
[1750035990506,4.19109209,105590.0,105580.0,0.11883824]
[1750035990741,4.19109209,105590.0,105580.0,0.10105]
[1750035991657,4.19109209,105590.0,105580.0,0.08258845]
[1750035991902,4.19109209,105590.0,105580.0,0.46000361]
[1750035992148,4.19109209,105590.0,105580.0,0.50047936]
[1750035992387,4.19109209,105590.0,105580.0,0.08748864]
[1750035993071,4.19109209,105590.0,105580.0,0.10527531]
[1750035993325,4.19109209,105590.0,105580.0,0.08748864]
[1750035993529,4.19109209,105590.0,105580.0,0.10527569]
[1750035993736,4.19109209,105590.0,105580.0,0.08748864]
[1750035993918,4.19109209,105590.0,105580.0,0.10527559]
[1750035994132,4.19109209,105590.0,105580.0,0.10527557]
[1750035994335,4.19109209,105590.0,105580.0,0.08748864]
[1750035994963,4.19109209,105590.0,105580.0,0.10527543]
[1750035995172,4.19109209,105590.0,105580.0,0.10527557]
[1750035995384,4.19109209,105590.0,105580.0,0.10527547]
[1750035996214,4.19109209,105590.0,105580.0,0.08748864]
[1750035996642,4.19109209,105590.0,105580.0,0.10527487]
[1750035996855,4.19109209,105590.0,105580.0,0.1052748]
[1750035997466,4.19109209,105590.0,105580.0,0.10527481]
[1750035997682,4.19109209,105590.0,105580.0,0.08748864]
[1750035997884,4.19109209,105590.0,105580.0,0.1052748]
[1750035998836,4.19109209,105590.0,105580.0,0.08748864]
[1750035999050,4.19109209,105590.0,105580.0,0.1052748]
[1750035999462,4.19109209,105590.0,105580.0,0.08748864]
[1750035999662,4.19109209,105590.0,105580.0,0.10527464]
[1750035999864,4.19109209,105590.0,105580.0,0.08748864]
[1750036000077,4.59576566,105590.0,105580.0,0.07287595]
[1750036000275,5.25602061,105590.0,105580.0,0.002]
[1750036000510,5.27503665,105590.0,105580.0,0.01979234]
[1750036000677,5.27503665,105590.0,105580.0,0.002]
[1750036000965,5.24696613,105590.0,105580.0,0.01979317]